fUSD/lending_fUSD_20240805
["ID","MTS","AMOUNT","RATE_DAILY","PERIOD"]
[334188461,1722819050896,-321.41906333,0.0002442,2]
[334188462,1722819050911,-4857.27335415,0.0002442,2]
[334188463,1722819050922,-3019.23233587,0.0002442,2]
[334188464,1722819050935,-1650.73635734,0.0002442,2]
[334188465,1722819050946,-602.27518501,0.0002442,2]
[334188466,1722819050957,-42882.0452576,0.0002442,2]
[334188467,1722819051341,-360.62,0.00010887,2]
[334188468,1722819051350,-360.62,0.00010887,2]
[334188469,1722819051360,-360.62,0.00010887,2]
[334188470,1722819051369,-360.62,0.00010887,2]
[334188471,1722819051379,-360.62,0.00010887,2]
[334188472,1722819051389,-360.62,0.00010887,2]
[334188473,1722819051398,-1434.520106,0.000243,7]
[334188474,1722819051411,-1434.520106,0.00024419,7]
[334188475,1722819051421,-23452.063008,0.0002442,2]
[334188476,1722819051811,-4466.48701934,0.00011324,2]
[334188477,1722819051821,-1233.51298066,0.00015815,2]
[334188478,1722819051843,-538.29686864,0.00015557,3]
[334188479,1722819051855,-97.76313136,0.00015557,3]
[334188480,1722819051865,-558.31186864,0.00015815,2]
[334188481,1722819052059,-6750.77255877,0.00015815,2]
[334188482,1722819052113,-1457.40259193,0.00015815,2]
[334188483,1722819052123,-111018.24227743,0.0002442,2]
[334188484,1722819052140,-267.11800025,0.00017434,2]
[334188485,1722819052150,-21771.68718146,0.0002442,2]
[334188486,1722819052169,-1243.2758,0.0002442,2]
[334188487,1722819052181,-1964.39524608,0.0002442,2]
[334188488,1722819052193,-1162.18224635,0.0002442,2]
[334188489,1722819052211,-14162.8242201,0.0002442,2]
[334188490,1722819052222,-11390.0,0.0002442,2]
[334188491,1722819052238,-26500.00000037,0.0002442,2]
[334188492,1722819052249,-13399.999997,0.0002442,2]
[334188493,1722819052261,-20825.37923273,0.0002442,2]
[334188494,1722819052271,-242.0,0.0002442,2]
[334188495,1722819052282,-5255.82171318,0.0002442,2]
[334188496,1722819052292,-207.99976497,0.00024421,2]
[334188497,1722819052302,-1058.52936663,0.00024422,2]
[334188498,1722819052311,-6810.06992248,0.00024423,2]
[334188499,1722819052323,-263.0,0.00024423,2]
[334188500,1722819052335,-332.99852024,0.00024423,2]
[334188501,1722819052346,-4552.548,0.00024423,2]
[334188502,1722819052433,-510.000005,0.00024423,2]
[334188504,1722819178634,-2038.29,0.00010447,2]
[334188505,1722819178656,-2234.79596066,0.000105,2]
[334188506,1722819178676,-3781.4284,0.000107,2]
[334188507,1722819178699,-11945.48563934,0.00010797,2]
[334188508,1722819179702,-2198.26966066,0.00010797,2]
[334188509,1722819179723,-2000.0,0.00010797,2]
[334188510,1722819179743,-13767.73952048,0.00010832,2]
[334188511,1722819179765,-2033.99081886,0.00010897,2]
[334188512,1722819181177,-20000.0,0.00010897,2]
[334188523,1722819290195,400.0,0.00026353,120]
[334188528,1722819594110,507.24,9.561e-05,2]
[334188530,1722819658726,68399.90865809,9.561e-05,2]
[334188531,1722819673810,1401.67945,9.561e-05,2]
[334188535,1722820107342,425.53898773,9.561e-05,2]
[334188536,1722820139322,3178.74691299,9.561e-05,2]
[334188537,1722820141708,250.0,9.561e-05,2]
[334188538,1722820172275,734.03,9.121e-05,2]
[334188540,1722820207192,290.29227992,9.561e-05,10]
[334188579,1722820232141,-300.0,9.972e-05,2]
[334188581,1722820232154,-1.76390176,9.972e-05,2]
[334188584,1722820232166,-995.24525945,0.00010295,2]
[334188610,1722820232311,-641.02,0.00010295,2]
[334188615,1722820232326,-1017.25096155,0.00010295,2]
[334188617,1722820232338,-343.0,0.00010347,2]
[334188619,1722820232350,-300.0,0.00010399,2]
[334188621,1722820232361,-7611.6575,0.000104,2]
[334188623,1722820232372,-156.1607406,0.000104,2]
[334188625,1722820232383,-7945.8478361,0.000105,2]
[334188627,1722820232394,-150.0,0.00010796,2]
[334188629,1722820232408,-220.82559078,0.00010797,2]
[334188631,1722820232423,-1050.00000188,0.00010797,2]
[334188632,1722820232437,-4252.37643937,0.00010797,2]
[334188635,1722820232465,-4216.22516797,0.00010797,2]
[334188636,1722820232477,-717.16603805,0.00010797,2]
[334188637,1722820232491,-4413.7345626,0.00010797,2]
[334188638,1722820232504,-2244.09789935,0.00010797,2]
[334188639,1722820232516,-2655.9261,0.00010797,2]
[334188640,1722820232528,-50.33013922,0.00010797,2]
[334188641,1722820232541,-449.66986078,0.00010797,2]
[334188642,1722820232553,-29499.1583,0.00010797,2]
[334188643,1722820232564,-3151.9873,0.00010797,2]
[334188644,1722820232575,-311.8456,0.00010797,2]
[334188645,1722820232587,-1000.0,0.00010797,2]
[334188646,1722820232598,-222966.00918114,0.00010897,2]
[334188647,1722820232609,-178.01016577,0.000109,2]
[334188648,1722820232621,-1000.0,0.00010959,2]
[334188649,1722820232633,-1000.0,0.00010959,2]
[334188650,1722820232644,-1000.0,0.00010959,2]
[334188651,1722820232655,-1000.0,0.00010959,2]
[334188652,1722820232666,-1000.0,0.00010959,2]
[334188653,1722820232677,-1000.0,0.00010959,2]
[334188654,1722820232710,-1000.0,0.00010959,2]
[334188655,1722820232722,-1000.0,0.00010959,2]
[334188656,1722820232733,-1000.0,0.00010959,2]
[334188657,1722820232744,-1000.0,0.00010959,2]
[334188658,1722820232755,-1000.0,0.00010959,2]
[334188659,1722820232766,-1000.0,0.00010959,2]
[334188660,1722820232777,-1000.0,0.00010959,2]
[334188661,1722820232788,-1000.0,0.00010959,2]
[334188662,1722820232799,-1000.0,0.00010959,2]
[334188663,1722820232810,-1000.0,0.00010959,2]
[334188664,1722820232823,-1000.0,0.00010959,2]
[334188665,1722820232835,-1000.0,0.00010959,2]
[334188666,1722820232846,-1000.0,0.00010959,2]
[334188667,1722820232858,-1000.0,0.00010959,2]
[334188668,1722820232869,-1000.0,0.00010959,2]
[334188669,1722820232881,-1000.0,0.00010959,2]
[334188670,1722820232892,-1000.0,0.00010959,2]
[334188671,1722820232903,-1000.0,0.00010959,2]
[334188672,1722820232915,-1000.0,0.00010959,2]
[334188673,1722820232927,-1000.0,0.00010959,2]
[334188674,1722820232938,-1000.0,0.00010959,2]
[334188675,1722820232949,-1000.0,0.00010959,2]
[334188676,1722820232959,-466.39,0.00010959,2]
[334188677,1722820232971,-406.5,0.00010959,2]
[334188678,1722820232982,-550.0,0.00011,2]
[334188679,1722820232993,-428.49,0.00011,2]
[334188680,1722820233004,-250.0,0.0001101,2]
[334188682,1722820233015,-5399.26968187,0.00011105,2]
[334188684,1722820233029,-719.34566812,0.00011105,2]
[334188687,1722820233041,-911.09,0.00011105,2]
[334188690,1722820233053,-150.99,0.00011105,2]
[334188693,1722820233065,-999.99,0.00011105,2]
[334188695,1722820233076,-210.84776497,0.00011105,2]
[334188699,1722820233088,-1666.81,0.00011161,2]
[334188702,1722820233099,-499.99,0.00011161,2]
[334188704,1722820233110,-1000.0,0.00011167,2]
[334188707,1722820233122,-25298.4632004,0.00011186,2]
[334188710,1722820233134,-347.32373286,0.00011206,2]
[334188712,1722820233146,-3780.41729676,0.00011206,2]
[334188714,1722820233157,-1256.07959167,0.00011324,2]
[334188716,1722820233169,-155.0,0.00011324,2]
[334188719,1722820233180,-155.0,0.00011324,2]
[334188722,1722820233210,-1500.0,0.00011324,2]
[334188725,1722820233222,-155.64309799,0.00011324,2]
[334188727,1722820233239,-2273.30009249,0.00011324,2]
[334188730,1722820233256,-155.0,0.00011384,2]
[334188733,1722820233267,-500.0,0.00011384,2]
[334188736,1722820233278,-211.54413421,0.00011384,2]
[334188739,1722820233291,-542.03546686,0.00011384,2]
[334188742,1722820233302,-699.60000046,0.00011384,2]
[334188745,1722820233314,-243.00643023,0.00011384,2]
[334188747,1722820233325,-734.03,0.00011385,2]
[334188749,1722820233341,-420.0,0.00011434,2]
[334188751,1722820233352,-155.07714758,0.00011525,2]
[334188753,1722820233363,-155.11329335,0.00011525,2]
[334188755,1722820233374,-181.04293925,0.00011525,2]
[334188757,1722820233385,-476.58135934,0.00011525,2]
[334188759,1722820233395,-255.0,0.00011832,2]
[334188761,1722820233406,-23900.0,0.00011832,2]
[334188763,1722820233418,-1007.91,0.00011861,2]
[334188764,1722820233429,-1007.91,0.00011864,2]
[334188766,1722820233440,-1007.91,0.00011867,2]
[334188768,1722820233453,-1007.91,0.0001187,2]
[334188770,1722820233464,-1007.91,0.00011873,2]
[334188772,1722820233475,-1007.91,0.00011876,2]
[334188774,1722820233489,-1007.91,0.0001188,2]
[334188776,1722820233501,-1007.91,0.00011883,2]
[334188778,1722820233513,-1007.91,0.00011886,2]
[334188780,1722820233524,-1007.91,0.00011889,2]
[334188782,1722820233535,-1007.91,0.00011892,2]
[334188784,1722820233550,-1007.91,0.00011895,2]
[334188786,1722820233561,-1007.91,0.00011898,2]
[334188788,1722820233573,-1007.91,0.00011901,2]
[334188790,1722820233585,-1007.91,0.00011905,2]
[334188792,1722820233595,-1007.91,0.00011908,2]
[334188794,1722820233606,-1007.91,0.00011911,2]
[334188795,1722820233618,-1007.91,0.00011914,2]
[334188796,1722820233630,-1007.91,0.00011917,2]
[334188797,1722820233641,-1007.91,0.0001192,2]
[334188800,1722820233654,-4791.7475997,0.0001236,2]
[334188802,1722820233665,-1000.0,0.00012563,2]
[334188804,1722820233676,-165.12,0.00012565,2]
[334188806,1722820233687,-587.0,0.00012573,2]
[334188807,1722820233713,-200.0,0.00012585,2]
[334188809,1722820233726,-155.0,0.00012666,2]
[334188811,1722820233737,-1527.95,0.00012915,2]
[334188813,1722820233749,-250.0,0.00012915,2]
[334188815,1722820233760,-433.0,0.00012966,2]
[334188817,1722820233771,-600.0,0.00013,2]
[334188819,1722820233782,-168.58,0.00013102,2]
[334188821,1722820233794,-161.18,0.00013119,2]
[334188822,1722820233806,-1000.0,0.00013208,2]
[334188823,1722820233817,-151.82,0.00013287,2]
[334188824,1722820233828,-151.82,0.00013287,2]
[334188825,1722820233840,-345061.67698404,0.00013297,2]
[334188826,1722820233867,-28000.0,0.00013297,2]
[334188827,1722820233918,-7981.72686071,0.00013297,2]
[334188828,1722820233970,-404.0,0.00013297,2]
[334188829,1722820234068,-259.3042269,0.00013297,2]
[334188830,1722820234080,-510.2,0.00013297,2]
[334188831,1722820234094,-258.29408415,0.00013297,2]
[334188832,1722820234107,-11746.00749689,0.00013297,2]
[334188833,1722820234121,-74333.55991587,0.00013297,2]
[334188834,1722820234135,-3504.66091168,0.00013297,2]
[334188835,1722820234150,-5891.77769997,0.00013297,2]
[334188836,1722820234163,-8480.11600229,0.00013297,2]
[334188837,1722820234230,-1059.67519389,0.00013297,2]
[334188859,1722820237989,-2557.01776396,0.00010797,2]
[334188868,1722820238042,-71404.68286742,0.00010797,2]
[334188870,1722820238056,-4052.80753463,0.00010797,2]
[334188872,1722820238070,-1014.11145657,0.00010797,2]
[334188874,1722820238085,-1363.41484741,0.00010797,2]
[334188875,1722820238099,-1129.91975235,0.00010797,2]
[334188876,1722820238322,-3649.33553722,0.00010797,2]
[334188877,1722820238340,-1044.02626985,0.00010797,2]
[334188878,1722820238356,-1956.72,0.00010797,2]
[334188879,1722820238400,-425.65692487,0.00010797,2]
[334188926,1722820240435,-265.19799263,0.00010797,2]
[334188928,1722820240449,-1307.4840418,0.00010797,2]
[334188931,1722820240463,-11144.06285403,0.00010797,2]
[334188944,1722820240611,-5041.6,0.00010797,2]
[334188946,1722820240625,-329.54,0.00010797,2]
[334188949,1722820240645,-138314.42215726,0.00010797,2]
[334188951,1722820240658,-649.20351135,0.00011324,2]
[334188953,1722820240669,-947.92262883,0.00011589,2]
[334188955,1722820240681,-852.93348272,0.00013294,2]
[334188957,1722820240701,-734.03,0.00013649,2]
[334188959,1722820240714,-200.0,0.00013699,2]
[334188962,1722820240726,-2751.0,0.00013699,2]
[334188964,1722820240740,-238348.0,0.00013701,2]
[334188966,1722820240773,-852.93348272,0.00013797,2]
[334188968,1722820240786,-168.58,0.00013798,2]
[334188971,1722820241026,-634.94618144,0.00013799,2]
[334188973,1722820241038,-99855.4923787,0.000138,3]
[334188975,1722820241050,-300.0,0.000138,5]
[334188978,1722820241062,-823.0,0.00013824,2]
[334188980,1722820241075,-151.82,0.0001389,2]
[334188982,1722820241087,-89871.47787102,0.000139,3]
[334188984,1722820241102,-162734.65709898,0.000139,3]
[334188987,1722820241126,-600.0,0.000139,5]
[334188989,1722820241139,-1000.0,0.00013959,2]
[334188991,1722820241152,-155.76,0.00013973,2]
[334188993,1722820241163,-167.77,0.00013973,2]
[334188995,1722820241175,-252.0,0.00014218,2]
[334188997,1722820241188,-168.58,0.00014493,2]
[334188999,1722820241199,-650.0,0.00015,2]
[334189001,1722820241214,-434.0,0.00015,2]
[334189004,1722820241237,-168.58,0.00015188,2]
[334189006,1722820241263,-1000.0,0.00015355,2]
[334189008,1722820241275,-178.01016574,0.00015539,2]
[334189010,1722820241287,-168.58,0.00015883,2]
[334189012,1722820241304,-734.03,0.00015912,2]
[334189014,1722820241316,-200.0,0.00016,2]
[334189016,1722820241334,-165.17094929,0.00016501,2]
[334189018,1722820241349,-1000.0,0.0001675,2]
[334189020,1722820241360,-10000.0,0.00016881,2]
[334189022,1722820241373,-1500.0,0.00017,2]
[334189024,1722820241385,-700.0,0.00017,2]
[334189026,1722820241396,-1370.0,0.00017067,2]
[334189028,1722820241407,-150.0,0.00017067,2]
[334189030,1722820241419,-3285.0,0.00017067,2]
[334189033,1722820241430,-5128.0,0.00017067,2]
[334189035,1722820241445,-1670.0,0.00017067,2]
[334189037,1722820241456,-1209.853,0.00017067,2]
[334189038,1722820241468,-289.0,0.00017067,2]
[334189040,1722820241479,-5836.0,0.00017067,2]
[334189042,1722820241491,-14027.001,0.00017067,2]
[334189044,1722820241502,-171.5,0.0001733,2]
[334189046,1722820241514,-400.0,0.00017569,2]
[334189048,1722820241525,-500.0,0.0001757,2]
[334189050,1722820241537,-200.0,0.0001757,2]
[334189052,1722820241549,-1000.0,0.000179,6]
[334189054,1722820241562,-2444.0,0.00017904,2]
[334189056,1722820241573,-158.44,0.00018087,2]
[334189057,1722820241585,-734.03,0.00018176,2]
[334189059,1722820241596,-150.346,0.0001841,2]
[334189061,1722820241609,-1255.0,0.0001841,2]
[334189063,1722820241621,-1581.0,0.0001841,2]
[334189065,1722820241633,-1925.0,0.0001841,2]
[334189067,1722820241654,-1552.0,0.0001841,2]
[334189069,1722820241666,-451.0,0.0001841,2]
[334189071,1722820241677,-475.455,0.0001841,2]
[334189073,1722820241690,-150.354,0.0001841,2]
[334189075,1722820241701,-811.0,0.0001841,2]
[334189077,1722820241713,-150.269,0.0001841,2]
[334189079,1722820241726,-551.617,0.0001841,2]
[334189081,1722820241737,-1893.0,0.0001841,2]
[334189082,1722820241748,-33785.34832957,0.00018499,2]
[334189085,1722820241763,-200.0,0.00018878,2]
[334189086,1722820241787,-750.0,0.00019,2]
[334189088,1722820241799,-278.77785841,0.00019,2]
[334189090,1722820241810,-267.11800025,0.00019301,2]
[334189092,1722820241823,-165.17094929,0.00019301,2]
[334189094,1722820241835,-400.0,0.00019765,2]
[334189096,1722820241847,-624.125,0.00020067,2]
[334189098,1722820241863,-1203.0,0.00020067,2]
[334189100,1722820241875,-150.0,0.00020067,2]
[334189102,1722820241886,-5602.707,0.00020067,2]
[334189104,1722820241898,-19999.99,0.00020145,2]
[334189106,1722820241910,-29999.99,0.00020145,2]
[334189108,1722820241921,-6271.7,0.00020145,2]
[334189110,1722820241932,-178.01016574,0.0002022,2]
[334189112,1722820241944,-734.03,0.0002044,2]
[334189114,1722820241955,-500.0,0.00020753,2]
[334189116,1722820241968,-7895.27913791,0.00020899,2]
[334189118,1722820241981,-2839.13560359,0.00020999,2]
[334189120,1722820241993,-5000.0,0.00020999,2]
[334189122,1722820242004,-2384.51677582,0.00020999,2]
[334189124,1722820242016,-178.213552,0.00021096,2]
[334189126,1722820242028,-267.11800025,0.00021167,2]
[334189128,1722820242039,-832.0,0.0002141,2]
[334189130,1722820242051,-550.0,0.0002141,2]
[334189132,1722820242062,-164.846,0.0002141,2]
[334189134,1722820242078,-158.36,0.00021589,30]
[334189135,1722820242090,-150.41,0.00021918,2]
[334189137,1722820242103,-178.213552,0.00021918,2]
[334189139,1722820242114,-400.0,0.00021961,2]
[334189141,1722820242126,-150.0,0.0002197,2]
[334189175,1722820242546,-371.71125404,0.00022,2]
[334189179,1722820242578,-165.17094929,0.000221,2]
[334189181,1722820242590,-156.365248,0.00022438,2]
[334189184,1722820242603,-7446.10655412,0.00022623,2]
[334189188,1722820242615,-734.03,0.00022704,2]
[334189192,1722820242626,-178.213552,0.0002274,2]
[334189195,1722820242639,-150.0,0.00023,2]
[334189198,1722820242651,-200.0,0.00023,2]
[334189201,1722820242663,-1000.0,0.00023033,2]
[334189206,1722820242674,-1000.0,0.00023033,2]
[334189210,1722820242686,-1000.0,0.00023033,2]
[334189213,1722820242699,-1000.0,0.00023033,2]
[334189217,1722820242712,-1000.0,0.00023033,2]
[334189221,1722820242727,-1000.0,0.00023033,2]
[334189224,1722820242738,-1000.0,0.00023033,2]
[334189227,1722820242750,-1000.0,0.00023033,2]
[334189231,1722820242762,-1000.0,0.00023033,2]
[334189233,1722820242784,-1000.0,0.00023033,2]
[334189235,1722820242797,-1000.0,0.00023033,2]
[334189237,1722820242811,-1000.0,0.00023033,2]
[334189240,1722820242830,-1000.0,0.00023033,2]
[334189243,1722820242842,-1000.0,0.00023033,2]
[334189246,1722820242855,-1000.0,0.00023033,2]
[334189249,1722820242867,-1000.0,0.00023033,2]
[334189253,1722820242878,-1000.0,0.00023033,2]
[334189256,1722820242890,-1000.0,0.00023033,2]
[334189258,1722820242901,-1000.0,0.00023033,2]
[334189267,1722820242918,-1000.0,0.00023033,2]
[334189273,1722820242931,-1000.0,0.00023033,2]
[334189282,1722820242943,-1000.0,0.00023033,2]
[334189287,1722820242955,-1000.0,0.00023033,2]
[334189297,1722820242967,-1000.0,0.00023033,2]
[334189305,1722820242980,-1000.0,0.00023033,2]
[334189312,1722820242992,-1000.0,0.00023033,2]
[334189321,1722820243005,-1000.0,0.00023033,2]
[334189328,1722820243027,-1000.0,0.00023033,2]
[334189336,1722820243040,-1000.0,0.00023033,2]
[334189342,1722820243052,-1000.0,0.00023033,2]
[334189349,1722820243064,-1000.0,0.00023033,2]
[334189354,1722820243076,-1000.0,0.00023033,2]
[334189360,1722820243088,-1000.0,0.00023033,2]
[334189365,1722820243100,-1000.0,0.00023033,2]
[334189369,1722820243111,-1000.0,0.00023033,2]
[334189373,1722820243130,-1000.0,0.00023033,2]
[334189377,1722820243143,-1000.0,0.00023033,2]
[334189382,1722820243155,-1000.0,0.00023033,2]
[334189386,1722820243166,-1000.0,0.00023033,2]
[334189391,1722820243177,-1000.0,0.00023033,2]
[334189396,1722820243188,-1000.0,0.00023033,2]
[334189400,1722820243199,-1000.0,0.00023033,2]
[334189405,1722820243210,-1000.0,0.00023033,2]
[334189408,1722820243222,-1000.0,0.00023033,2]
[334189412,1722820243243,-1000.0,0.00023033,2]
[334189415,1722820243258,-1000.0,0.00023033,2]
[334189417,1722820243280,-1000.0,0.00023033,2]
[334189419,1722820243295,-1000.0,0.00023033,2]
[334189421,1722820243307,-1000.0,0.00023033,2]
[334189423,1722820243321,-1000.0,0.00023033,2]
[334189425,1722820243342,-1000.0,0.00023033,2]
[334189427,1722820243356,-1000.0,0.00023033,2]
[334189429,1722820243368,-1000.0,0.00023033,2]
[334189431,1722820243379,-1000.0,0.00023033,2]
[334189433,1722820243391,-1000.0,0.00023033,2]
[334189435,1722820243402,-1000.0,0.00023033,2]
[334189437,1722820243414,-1000.0,0.00023033,2]
[334189439,1722820243427,-1000.0,0.00023033,2]
[334189442,1722820243447,-1000.0,0.00023033,2]
[334189444,1722820243459,-1000.0,0.00023033,2]
[334189446,1722820243473,-1000.0,0.00023033,2]
[334189448,1722820243484,-1000.0,0.00023033,2]
[334189450,1722820243497,-1000.0,0.00023033,2]
[334189452,1722820243509,-1000.0,0.00023033,2]
[334189453,1722820243522,-1000.0,0.00023033,2]
[334189454,1722820243533,-1000.0,0.00023033,2]
[334189455,1722820243553,-1000.0,0.00023033,2]
[334189456,1722820243564,-1000.0,0.00023033,2]
[334189457,1722820243576,-1000.0,0.00023033,2]
[334189458,1722820243588,-1000.0,0.00023033,2]
[334189459,1722820243600,-1000.0,0.00023033,2]
[334189460,1722820243611,-1012.0,0.00023033,2]
[334189461,1722820243623,-267.11800025,0.00023034,2]
[334189462,1722820243635,-500.0,0.00023078,2]
[334189463,1722820243648,-180.0,0.00023205,2]
[334189465,1722820243660,-155.0,0.00023451,2]
[334189467,1722820243672,-1926.73701932,0.00023451,2]
[334189469,1722820243684,-961.87550092,0.0002354,2]
[334189471,1722820243695,-156.365248,0.00023559,2]
[334189473,1722820243707,-178.213552,0.00023562,2]
[334189475,1722820243718,-1300.0,0.000237,8]
[334189477,1722820243730,-1000.0,0.000237,2]
[334189479,1722820243742,-1700.0,0.000238,8]
[334189482,1722820243754,-334.410094,0.00023866,2]
[334189484,1722820243766,-535.57210001,0.00023873,2]
[334189486,1722820243791,-155.0,0.00023873,2]
[334189488,1722820243803,-1137.94693277,0.00023873,2]
[334189489,1722820243815,-255.00517776,0.00023873,2]
[334189491,1722820243831,-270.53531437,0.00023873,2]
[334189493,1722820243843,-623.71755966,0.00023873,2]
[334189495,1722820243855,-479.83714977,0.00023873,2]
[334189498,1722820243871,-159.45352727,0.00023873,2]
[334189500,1722820243883,-155.0,0.00023873,2]
[334189502,1722820243894,-484.69898026,0.00023873,2]
[334189504,1722820243906,-1175.72672229,0.00023873,2]
[334189506,1722820243918,-155.05886388,0.00023873,2]
[334189508,1722820243931,-295.77645345,0.00023873,2]
[334189510,1722820243944,-155.08280542,0.00023873,2]
[334189512,1722820243957,-300.0,0.000239,8]
[334189514,1722820243972,-500.0,0.00023924,2]
[334189516,1722820243984,-1010.97981622,0.00023935,2]
[334189518,1722820243996,-1137.76470617,0.00023935,2]
[334189520,1722820244007,-502.34660416,0.00023991,2]
[334189522,1722820244019,-161.0,0.00024,7]
[334189524,1722820244030,-167.937851,0.00024,9]
[334189526,1722820244042,-151.82,0.00024081,2]
[334189528,1722820244054,-272608.85587805,0.00024091,11]
[334189530,1722820244066,-151.0,0.00024091,7]
[334189532,1722820244079,-151.0,0.00024091,7]
[334189534,1722820244091,-153.632,0.00024091,7]
[334189536,1722820244103,-39117.4587,0.00024091,2]
[334189538,1722820244116,-100000.0,0.00024091,2]
[334189540,1722820244127,-1000.0,0.00024091,2]
[334189542,1722820244140,-248.1,0.000241,11]
[334189544,1722820244152,-155.0,0.00024124,2]
[334189546,1722820244163,-328.00522683,0.00024124,2]
[334189548,1722820244176,-265.40365022,0.00024124,2]
[334189550,1722820244188,-228.87598669,0.00024124,2]
[334189552,1722820244202,-2500.85158559,0.00024124,2]
[334189554,1722820244214,-359.03203292,0.00024124,2]
[334189556,1722820244226,-600.14164396,0.00024124,2]
[334189558,1722820244238,-217.6413341,0.00024124,2]
[334189560,1722820244249,-165.38426811,0.00024124,2]
[334189562,1722820244269,-186.72311847,0.00024124,2]
[334189564,1722820244282,-155.0,0.00024124,2]
[334189566,1722820244294,-247.40050019,0.00024124,2]
[334189568,1722820244313,-4103.05217891,0.00024124,2]
[334189570,1722820244326,-150.0,0.00024149,2]
[334189572,1722820244339,-150.0,0.00024155,2]
[334189574,1722820244353,-150.0,0.00024156,2]
[334189576,1722820244365,-400.0,0.00024157,2]
[334189578,1722820244377,-150.0,0.00024161,2]
[334189580,1722820244399,-150.0,0.00024162,2]
[334189582,1722820244411,-150.0,0.00024164,2]
[334189584,1722820244424,-150.0,0.00024164,2]
[334189586,1722820244436,-150.0,0.00024168,2]
[334189588,1722820244449,-150.0,0.00024177,2]
[334189590,1722820244462,-150.0,0.00024182,2]
[334189592,1722820244474,-150.0,0.00024182,2]
[334189595,1722820244486,-300.0,0.00024192,2]
[334189597,1722820244501,-150.0,0.00024193,2]
[334189599,1722820244514,-150.0,0.00024197,2]
[334189601,1722820244526,-150.0,0.00024204,2]
[334189603,1722820244539,-150.0,0.00024206,2]
[334189605,1722820244550,-150.0,0.00024208,2]
[334189607,1722820244562,-150.0,0.00024212,2]
[334189609,1722820244574,-150.0,0.00024213,2]
[334189611,1722820244586,-150.0,0.0002422,2]
[334189613,1722820244598,-150.0,0.00024222,2]
[334189615,1722820244612,-150.0,0.00024223,2]
[334189617,1722820244624,-150.0,0.00024224,2]
[334189619,1722820244637,-150.0,0.00024225,2]
[334189621,1722820244649,-150.0,0.0002423,2]
[334189623,1722820244661,-150.0,0.00024231,2]
[334189625,1722820244673,-150.0,0.00024233,2]
[334189627,1722820244685,-150.0,0.00024234,2]
[334189629,1722820244697,-15160.86734892,0.00024236,2]
[334189631,1722820244712,-150.0,0.0002424,2]
[334189633,1722820244725,-150.0,0.00024241,2]
[334189635,1722820244737,-150.0,0.00024242,2]
[334189637,1722820244749,-150.0,0.00024243,2]
[334189640,1722820244762,-334.4100941,0.00024247,2]
[334189642,1722820244774,-150.0,0.00024248,2]
[334189644,1722820244786,-150.0,0.00024249,2]
[334189646,1722820244798,-150.0,0.0002425,2]
[334189648,1722820244811,-150.0,0.00024251,2]
[334189650,1722820244824,-150.0,0.00024257,2]
[334189652,1722820244837,-150.0,0.00024259,2]
[334189654,1722820244849,-150.0,0.00024259,2]
[334189656,1722820244861,-150.0,0.0002426,2]
[334189658,1722820244872,-150.0,0.00024262,2]
[334189660,1722820244885,-150.0,0.00024264,2]
[334189662,1722820244898,-1494.89548425,0.00024264,2]
[334189664,1722820244911,-150.0,0.00024266,2]
[334189666,1722820244927,-150.0,0.00024267,2]
[334189668,1722820244939,-150.0,0.00024274,2]
[334189670,1722820244952,-150.0,0.00024274,2]
[334189672,1722820244964,-150.0,0.00024277,2]
[334189675,1722820244978,-150.0,0.00024278,2]
[334189677,1722820244990,-150.0,0.0002428,2]
[334189679,1722820245002,-150.0,0.00024281,2]